fUSD/lending_fUSD_20240611
["ID","MTS","AMOUNT","RATE_DAILY","PERIOD"]
[329097019,1718103056929,-157.650602,0.00024931,7]
[329097020,1718103056941,-151.0,0.00024931,7]
[329097021,1718103056952,-500.0,0.00024931,2]
[329097022,1718103056964,-1224.59,0.00024931,2]
[329097023,1718103056979,-1012.23,0.00024931,2]
[329097024,1718103056990,-500.0,0.00024931,2]
[329097025,1718103057001,-527.09,0.00024931,2]
[329097026,1718103057015,-151.0,0.00024931,7]
[329097027,1718103057026,-151.0,0.00024931,7]
[329097028,1718103057038,-719.45,0.00024931,2]
[329097029,1718103057056,-500.0,0.00024931,2]
[329097030,1718103057069,-1460.05,0.00024931,2]
[329097031,1718103057081,-1289.19,0.00024931,2]
[329097032,1718103057093,-151.0,0.00024931,7]
[329097033,1718103057105,-500.0,0.00024931,2]
[329097034,1718103057117,-291.66428093,0.00024931,2]
[329097035,1718103057129,-1187.92,0.00024931,2]
[329097036,1718103057144,-500.0,0.00024931,2]
[329097037,1718103057158,-691.71,0.00024931,2]
[329097038,1718103057170,-500.0,0.00024931,2]
[329097039,1718103057182,-765.745762,0.00024931,7]
[329097040,1718103057195,-1589.91,0.00024931,2]
[329097041,1718103057207,-765.745762,0.00024931,7]
[329097042,1718103057219,-151.0,0.00024931,7]
[329097043,1718103057231,-569.17,0.00024931,2]
[329097044,1718103057243,-500.0,0.00024931,2]
[329097045,1718103057255,-557.90407713,0.00024931,2]
[329097046,1718103057267,-214.642249,0.00024931,7]
[329097047,1718103057279,-214.642249,0.00024931,7]
[329097048,1718103057291,-500.0,0.00024931,2]
[329097049,1718103057302,-509.50764527,0.00024931,2]
[329097050,1718103057314,-151.0,0.00024931,7]
[329097051,1718103057325,-500.0,0.00024931,2]
[329097052,1718103057337,-1922.15,0.00024931,2]
[329097053,1718103057349,-151.0,0.00024931,7]
[329097054,1718103057360,-1006.207428,0.00024931,7]
[329097055,1718103057372,-1030.13,0.00024931,2]
[329097056,1718103057383,-1006.207428,0.00024931,7]
[329097057,1718103057395,-500.0,0.00024931,2]
[329097058,1718103057406,-1616.22,0.00024931,2]
[329097059,1718103057417,-500.0,0.00024931,2]
[329097060,1718103057429,-3561.35,0.00024931,2]
[329097061,1718103057441,-628.19,0.00024931,2]
[329097062,1718103057451,-447.143922,0.00024931,7]
[329097063,1718103057462,-447.143922,0.00024931,7]
[329097064,1718103057474,-500.0,0.00024931,2]
[329097065,1718103057485,-372.050106,0.00024931,7]
[329097066,1718103057496,-500.0,0.00024931,2]
[329097067,1718103057510,-500.0,0.00024931,2]
[329097068,1718103057520,-372.050106,0.00024931,7]
[329097069,1718103057531,-500.0,0.00024931,2]
[329097070,1718103057541,-752.11,0.00024931,2]
[329097071,1718103057552,-655.83,0.00024931,2]
[329097072,1718103057564,-151.0,0.00024931,7]
[329097073,1718103057575,-2058.77,0.00024931,2]
[329097074,1718103057586,-566.89311419,0.00024931,2]
[329097075,1718103057597,-500.0,0.00024931,2]
[329097076,1718103057608,-500.0,0.00024931,2]
[329097077,1718103057620,-2260.46,0.00024931,2]
[329097078,1718103057631,-1588.0,0.00024931,2]
[329097079,1718103057642,-552.18681853,0.00024931,2]
[329097080,1718103057654,-1174.18,0.00024931,2]
[329097081,1718103057665,-500.0,0.00024931,2]
[329097082,1718103057676,-500.0,0.00024931,2]
[329097083,1718103057688,-448.3643029,0.00024931,2]
[329097084,1718103057700,-236.590907,0.00024931,7]
[329097085,1718103057710,-236.590907,0.00024931,7]
[329097086,1718103057721,-296.518875,0.00024931,7]
[329097087,1718103057732,-500.0,0.00024931,2]
[329097088,1718103057743,-1694.76,0.00024931,2]
[329097089,1718103057755,-803.31,0.00024931,2]
[329097090,1718103057765,-296.518875,0.00024931,7]
[329097091,1718103057776,-642.17158199,0.00024931,2]
[329097092,1718103057788,-546.97502841,0.00024931,2]
[329097093,1718103057800,-995.49,0.00024931,2]
[329097094,1718103058103,-500.0,0.00024931,2]
[329097095,1718103058114,-500.0,0.00024931,2]
[329097096,1718103058126,-1020.06,0.00024931,2]
[329097097,1718103058139,-151.0,0.00024931,7]
[329097098,1718103058155,-500.0,0.00024931,2]
[329097099,1718103058166,-860.63,0.00024931,2]
[329097100,1718103058176,-473.378943,0.00024931,7]
[329097101,1718103058186,-500.0,0.00024931,2]
[329097102,1718103058197,-151.0,0.00024931,7]
[329097103,1718103058207,-500.0,0.00024931,2]
[329097104,1718103058218,-599.38,0.00024931,2]
[329097105,1718103058231,-151.0,0.00024931,7]
[329097106,1718103058242,-473.378943,0.00024931,7]
[329097107,1718103058253,-940.8,0.00024931,2]
[329097108,1718103058265,-500.0,0.00024931,2]
[329097109,1718103058276,-1420.19,0.00024931,2]
[329097110,1718103058287,-2225.45,0.00024931,2]
[329097111,1718103058297,-243.796985,0.00024931,7]
[329097112,1718103058308,-500.0,0.00024931,2]
[329097113,1718103058320,-512.94544243,0.00024931,2]
[329097114,1718103058330,-243.796985,0.00024931,7]
[329097115,1718103058341,-2026.42,0.00024931,2]
[329097116,1718103058351,-165.20505,0.00024931,7]
[329097117,1718103058362,-500.0,0.00024931,2]
[329097118,1718103058373,-2906.52,0.00024931,2]
[329097119,1718103058383,-165.20505,0.00024931,7]
[329097120,1718103058393,-500.0,0.00024931,2]
[329097121,1718103058403,-163.288509,0.00024931,7]
[329097122,1718103058415,-646.123264,0.00024931,7]
[329097123,1718103058425,-500.0,0.00024931,2]
[329097124,1718103058436,-646.123264,0.00024931,7]
[329097125,1718103058448,-163.288509,0.00024931,7]
[329097126,1718103058460,-500.0,0.00024931,2]
[329097127,1718103058471,-816.843791,0.00024931,7]
[329097128,1718103058482,-547.75565787,0.00024931,2]
[329097129,1718103058492,-500.0,0.00024931,2]
[329097130,1718103058503,-516.42579647,0.00024931,14]
[329097131,1718103058515,-500.0,0.00024931,2]
[329097132,1718103058525,-500.0,0.00024931,2]
[329097133,1718103058535,-500.0,0.00024931,2]
[329097134,1718103058546,-816.843791,0.00024931,7]
[329097135,1718103058557,-164.176193,0.00024931,7]
[329097136,1718103058568,-151.0,0.00024931,7]
[329097137,1718103058578,-500.0,0.00024931,2]
[329097138,1718103058589,-500.0,0.00024931,2]
[329097139,1718103058600,-154.372811,0.00024931,7]
[329097140,1718103058611,-500.0,0.00024931,2]
[329097141,1718103058622,-821.93,0.00024931,2]
[329097142,1718103058632,-500.0,0.00024931,2]
[329097143,1718103058644,-714.51,0.00024931,2]
[329097144,1718103058654,-154.372811,0.00024931,7]
[329097145,1718103058664,-500.0,0.00024931,2]
[329097146,1718103058675,-576.65,0.00024931,2]
[329097147,1718103058686,-555.89339514,0.00024931,2]
[329097148,1718103058697,-500.0,0.00024931,2]
[329097149,1718103058707,-500.0,0.00024931,2]
[329097150,1718103058718,-697.03,0.00024931,2]
[329097151,1718103058729,-233.732267,0.00024931,7]
[329097152,1718103058740,-500.0,0.00024931,2]
[329097153,1718103058751,-500.0,0.00024931,2]
[329097154,1718103058762,-837.720545,0.00024931,7]
[329097155,1718103058773,-500.0,0.00024931,2]
[329097156,1718103058783,-1049.071361,0.00024931,7]
[329097157,1718103058794,-500.0,0.00024931,2]
[329097158,1718103058804,-520.77,0.00024931,2]
[329097159,1718103058815,-500.0,0.00024931,2]
[329097160,1718103058826,-500.0,0.00024931,2]
[329097161,1718103058836,-1049.071361,0.00024931,7]
[329097162,1718103058847,-837.720545,0.00024931,7]
[329097163,1718103058857,-1080.442381,0.00024931,7]
[329097164,1718103058868,-500.0,0.00024931,2]
[329097165,1718103058879,-151.0,0.00024931,7]
[329097166,1718103058889,-500.0,0.00024931,2]
[329097167,1718103058900,-151.0,0.00024931,7]
[329097168,1718103058911,-644.63,0.00024931,2]
[329097169,1718103058921,-1080.442381,0.00024931,7]
[329097170,1718103058931,-2402.32,0.00024931,2]
[329097171,1718103058941,-151.0,0.00024931,7]
[329097172,1718103058951,-151.0,0.00024931,7]
[329097173,1718103058961,-288.664985,0.00024931,7]
[329097174,1718103058975,-500.0,0.00024931,2]
[329097175,1718103058987,-600.39070288,0.00024931,2]
[329097176,1718103058998,-500.0,0.00024931,2]
[329097177,1718103059008,-288.664985,0.00024931,7]
[329097178,1718103059023,-500.0,0.00024931,2]
[329097179,1718103059033,-161.611931,0.00024931,7]
[329097180,1718103059044,-500.0,0.00024931,2]
[329097181,1718103059054,-1518.18,0.00024931,2]
[329097182,1718103059067,-500.0,0.00024931,2]
[329097183,1718103059077,-6631.54,0.00024931,2]
[329097184,1718103059092,-500.0,0.00024931,2]
[329097185,1718103059103,-515.90401229,0.00024931,2]
[329097186,1718103059113,-500.0,0.00024931,2]
[329097187,1718103059124,-3646.17,0.00024931,2]
[329097188,1718103059134,-595.03,0.00024931,2]
[329097189,1718103059155,-1046.79,0.00024931,2]
[329097190,1718103059165,-500.0,0.00024931,2]
[329097191,1718103059176,-678.28,0.00024931,2]
[329097192,1718103059187,-500.0,0.00024931,2]
[329097193,1718103059198,-500.0,0.00024931,2]
[329097194,1718103059208,-570.13328872,0.00024931,2]
[329097195,1718103059218,-500.0,0.00024931,2]
[329097196,1718103059233,-3246.46,0.00024931,2]
[329097197,1718103059243,-1782.21,0.00024931,2]
[329097198,1718103059254,-500.0,0.00024931,2]
[329097199,1718103059266,-500.0,0.00024931,2]
[329097200,1718103059277,-1863.65,0.00024931,2]
[329097201,1718103059289,-986.96,0.00024931,2]
[329097202,1718103059299,-60128.61,0.00024931,2]
[329097203,1718103059309,-500.0,0.00024931,2]
[329097204,1718103059321,-590.58,0.00024931,2]
[329097205,1718103059331,-704.25,0.00024931,2]
[329097206,1718103059342,-694.504821,0.00024931,7]
[329097207,1718103059353,-694.504821,0.00024931,7]
[329097208,1718103059364,-500.0,0.00024931,2]
[329097209,1718103059375,-151.0,0.00024931,7]
[329097210,1718103059386,-151.0,0.00024931,7]
[329097211,1718103059399,-694.504821,0.00024931,7]
[329097212,1718103059409,-694.504821,0.00024931,7]
[329097213,1718103059420,-151.0,0.00024931,7]
[329097214,1718103059429,-164.067862,0.00024931,7]
[329097215,1718103059442,-546.65506779,0.00024931,2]
[329097216,1718103059454,-500.0,0.00024931,2]
[329097217,1718103059465,-3650.9,0.00024931,2]
[329097218,1718103059476,-1160.72,0.00024931,2]
[329097219,1718103059486,-500.0,0.00024931,2]
[329097220,1718103059497,-3600.94,0.00024931,2]
[329097221,1718103059508,-500.0,0.00024931,2]
[329097222,1718103059518,-16093.83,0.00024931,2]
[329097223,1718103059528,-500.0,0.00024931,2]
[329097224,1718103059539,-500.0,0.00024931,2]
[329097225,1718103059549,-719.54,0.00024931,2]
[329097226,1718103059560,-500.0,0.00024931,2]
[329097227,1718103059572,-1052.76,0.00024931,2]
[329097228,1718103059583,-2155.0,0.00024931,2]
[329097229,1718103059593,-6544.77,0.00024931,2]
[329097230,1718103059603,-740.04,0.00024931,2]
[329097231,1718103059615,-1888.46,0.00024931,2]
[329097232,1718103059625,-742.553418,0.00024931,7]
[329097233,1718103059636,-742.553418,0.00024931,7]
[329097234,1718103059647,-463.47025983,0.00024931,2]
[329097235,1718103059657,-742.553418,0.00024931,7]
[329097236,1718103059668,-742.553418,0.00024931,7]
[329097237,1718103059680,-500.0,0.00024931,2]
[329097238,1718103059694,-2806.67,0.00024931,2]
[329097239,1718103059705,-1554.02,0.00024931,2]
[329097240,1718103059717,-500.0,0.00024931,2]
[329097241,1718103059729,-461.42382176,0.00024931,2]
[329097242,1718103059739,-500.0,0.00024931,2]
[329097243,1718103059749,-598.4460967,0.00024931,2]
[329097244,1718103059760,-500.0,0.00024931,2]
[329097245,1718103059770,-1798.56,0.00024931,2]
[329097246,1718103059780,-500.0,0.00024931,2]
[329097247,1718103059790,-5181.24,0.00024931,2]
[329097248,1718103059801,-151.0,0.00024931,7]
[329097249,1718103059812,-151.0,0.00024931,7]
[329097250,1718103059823,-500.0,0.00024931,2]
[329097251,1718103059834,-500.0,0.00024931,2]
[329097252,1718103059845,-648.83,0.00024931,2]
[329097253,1718103059857,-1550.43,0.00024931,2]
[329097254,1718103059868,-556.8,0.00024931,2]
[329097255,1718103059879,-5415.76,0.00024931,2]
[329097256,1718103059890,-2910.91,0.00024931,2]
[329097257,1718103059902,-2813.33,0.00024931,2]
[329097258,1718103059914,-5210.45,0.00024931,2]
[329097259,1718103059925,-500.0,0.00024931,2]
[329097260,1718103059936,-2614.87,0.00024931,2]
[329097261,1718103059948,-780.220663,0.00024931,7]
[329097262,1718103059959,-566.41389407,0.00024931,2]
[329097263,1718103059971,-780.220663,0.00024931,7]
[329097264,1718103059984,-2508.57,0.00024931,2]
[329097265,1718103059996,-524.87,0.00024931,2]
[329097266,1718103060007,-780.220663,0.00024931,7]
[329097267,1718103060019,-500.0,0.00024931,2]
[329097268,1718103060030,-1490.4,0.00024931,2]
[329097269,1718103060040,-780.220663,0.00024931,7]
[329097270,1718103060051,-4575.68,0.00024931,2]
[329097271,1718103060061,-552.49173241,0.00024931,2]
[329097272,1718103060072,-570.9243852,0.00024931,2]
[329097273,1718103060084,-1385.62,0.00024931,2]
[329097274,1718103060096,-23273.76,0.00024931,2]
[329097275,1718103060107,-2161.49,0.00024931,2]
[329097276,1718103060119,-3397.46,0.00024931,2]
[329097277,1718103060129,-239.16152221,0.00024931,2]
[329097278,1718103060139,-151.0,0.00024931,7]
[329097279,1718103060155,-151.0,0.00024931,7]
[329097280,1718103060166,-500.0,0.00024931,2]
[329097281,1718103060177,-157.18640589,0.00024931,2]
[329097282,1718103060187,-836.93,0.00024931,2]
[329097283,1718103060198,-500.0,0.00024931,2]
[329097284,1718103060210,-500.0,0.00024931,2]
[329097285,1718103060222,-809.74,0.00024931,2]
[329097286,1718103060232,-4475.39,0.00024931,2]
[329097287,1718103060243,-500.0,0.00024931,2]
[329097288,1718103060253,-1793.26,0.00024931,2]
[329097289,1718103060264,-500.0,0.00024931,2]
[329097290,1718103060274,-2264.18,0.00024931,2]
[329097291,1718103060285,-1991.54,0.00024931,2]
[329097292,1718103060296,-172.84122269,0.00024931,2]
[329097293,1718103060306,-532.98614121,0.00024931,2]
[329097294,1718103060317,-592.32,0.00024931,2]
[329097295,1718103060327,-1014.4,0.00024931,2]
[329097296,1718103060338,-516.68,0.00024931,2]
[329097297,1718103060349,-881.73,0.00024931,2]
[329097298,1718103060359,-533.29444136,0.00024931,2]
[329097299,1718103060370,-2542.46,0.00024931,2]
[329097300,1718103060381,-6118.86,0.00024931,2]
[329097301,1718103060394,-500.0,0.00024931,2]
[329097302,1718103060404,-1797.291357,0.00024931,7]
[329097303,1718103060416,-1797.291357,0.00024931,7]
[329097304,1718103060427,-4350.15,0.00024931,2]
[329097305,1718103060440,-500.0,0.00024931,2]
[329097306,1718103060452,-12384.13,0.00024931,2]
[329097307,1718103060462,-500.0,0.00024931,2]
[329097308,1718103060474,-1797.291357,0.00024931,7]
[329097309,1718103060486,-1805.227908,0.00024931,7]
[329097310,1718103060499,-1797.291357,0.00024931,7]
[329097311,1718103060510,-1805.227908,0.00024931,7]
[329097312,1718103060520,-1210.98,0.00024931,2]
[329097313,1718103060530,-625.27,0.00024931,2]
[329097314,1718103060539,-661.12,0.00024931,2]
[329097315,1718103060550,-641.51381531,0.00024931,2]
[329097316,1718103060560,-500.0,0.00024931,2]
[329097317,1718103060571,-500.48,0.00024931,2]
[329097318,1718103060582,-1805.227908,0.00024931,7]
[329097319,1718103060593,-5976.04,0.00024931,2]
[329097320,1718103060604,-683.97,0.00024931,2]
[329097321,1718103060614,-1805.227908,0.00024931,7]
[329097322,1718103060625,-1301.38,0.00024931,2]
[329097323,1718103060635,-221.682962,0.00024931,7]
[329097324,1718103060646,-221.682962,0.00024931,7]
[329097325,1718103060656,-518.11,0.00024931,2]
[329097326,1718103060736,-500.0,0.00024931,2]
[329097327,1718103060746,-221.682962,0.00024931,7]
[329097328,1718103060758,-151.0,0.00024931,7]
[329097329,1718103060768,-1440.79,0.00024931,2]
[329097330,1718103060779,-221.682962,0.00024931,7]
[329097331,1718103060790,-20715.74,0.00024931,2]
[329097332,1718103060800,-7241.55,0.00024931,2]
[329097333,1718103060810,-4364.25,0.00024931,2]
[329097334,1718103060820,-4364.33,0.00024931,2]
[329097335,1718103060830,-1770.11,0.00024931,2]
[329097336,1718103060841,-151.0,0.00024931,7]
[329097337,1718103060851,-8941.42,0.00024931,2]
[329097338,1718103060861,-1826.27,0.00024931,2]
[329097339,1718103060871,-572.84,0.00024931,2]
[329097340,1718103060881,-994.59,0.00024931,2]
[329097341,1718103060891,-566.01205577,0.00024931,2]
[329097342,1718103060901,-542.08,0.00024931,2]
[329097343,1718103060911,-151.0,0.00024931,7]
[329097344,1718103060921,-151.0,0.00024931,7]
[329097345,1718103060932,-1968.25,0.00024931,2]
[329097346,1718103060943,-500.0,0.00024931,2]
[329097347,1718103060953,-3352.97,0.00024931,2]
[329097348,1718103060964,-2643.2,0.00024931,2]
[329097349,1718103060979,-8077.47,0.00024931,2]
[329097350,1718103060990,-554.66,0.00024931,2]
[329097351,1718103061000,-455.66132131,0.00024931,2]
[329097352,1718103061014,-817.34,0.00024931,2]
[329097353,1718103061023,-2323.66,0.00024931,2]
[329097354,1718103061033,-500.0,0.00024931,2]
[329097355,1718103061043,-238.867408,0.00024931,7]
[329097356,1718103061055,-500.0,0.00024931,2]
[329097357,1718103061067,-151.0,0.00024931,7]
[329097358,1718103061077,-601.59,0.00024931,2]
[329097359,1718103061087,-500.0,0.00024931,2]
[329097360,1718103061098,-151.0,0.00024931,7]
[329097361,1718103061108,-500.0,0.00024931,2]
[329097362,1718103061119,-500.0,0.00024931,2]
[329097363,1718103061129,-500.0,0.00024931,2]
[329097364,1718103061139,-1573.7,0.00024931,2]
[329097365,1718103061156,-8616.33,0.00024931,2]
[329097366,1718103061168,-500.0,0.00024931,2]
[329097367,1718103061180,-500.0,0.00024931,2]
[329097368,1718103061190,-3147.86,0.00024931,2]
[329097369,1718103061200,-4497.21,0.00024931,2]
[329097370,1718103061211,-500.0,0.00024931,2]
[329097371,1718103061221,-2963.67,0.00024931,2]
[329097372,1718103061231,-500.0,0.00024931,2]
[329097373,1718103061242,-698.88,0.00024931,2]
[329097374,1718103061253,-591.74,0.00024931,2]
[329097375,1718103061266,-500.0,0.00024931,2]
[329097376,1718103061276,-784.8,0.00024931,2]
[329097377,1718103061286,-4263.91,0.00024931,2]
[329097378,1718103061296,-449.998003,0.00024931,3]
[329097379,1718103061306,-449.998003,0.00024931,3]
[329097380,1718103061317,-1163.96,0.00024931,2]
[329097381,1718103061328,-1298.72,0.00024931,2]
[329097382,1718103061339,-2951.75,0.00024931,2]
[329097383,1718103061350,-682.636821,0.00024931,7]
[329097384,1718103061362,-682.636821,0.00024931,7]
[329097385,1718103061372,-449.998003,0.00024931,3]
[329097386,1718103061384,-2041.21,0.00024931,2]
[329097387,1718103061396,-449.998003,0.00024931,3]
[329097388,1718103061407,-1048.93,0.00024931,2]
[329097389,1718103061417,-682.636821,0.00024931,7]
[329097390,1718103061428,-682.636821,0.00024931,7]
[329097391,1718103061440,-1034.57,0.00024931,2]
[329097392,1718103061451,-4183.7,0.00024931,2]
[329097393,1718103061463,-511.27659262,0.00024931,2]
[329097394,1718103061474,-742.6,0.00024931,2]
[329097395,1718103061485,-500.0,0.00024931,2]
[329097396,1718103061496,-5992.83,0.00024931,2]
[329097397,1718103061509,-500.0,0.00024931,2]
[329097398,1718103061519,-500.0,0.00024931,2]
[329097399,1718103061530,-3291.99,0.00024931,2]
[329097400,1718103061542,-500.0,0.00024931,2]
[329097401,1718103061552,-1089.97,0.00024931,2]
[329097402,1718103061562,-7933.92,0.00024931,2]
[329097403,1718103061573,-3324.68,0.00024931,2]
[329097404,1718103061583,-619.1687705,0.00024931,2]
[329097405,1718103061594,-6862.43,0.00024931,2]
[329097406,1718103061605,-1657.61,0.00024931,2]
[329097407,1718103061615,-500.0,0.00024931,2]
[329097408,1718103061625,-500.0,0.00024931,2]
[329097409,1718103061635,-895.86,0.00024931,2]
[329097410,1718103061645,-1072.91,0.00024931,2]
[329097411,1718103061656,-661.87,0.00024931,2]
[329097412,1718103061667,-215.346475,0.00024931,7]
[329097413,1718103061678,-2637.47,0.00024931,2]
[329097414,1718103061689,-215.346475,0.00024931,7]
[329097415,1718103061699,-3348.17,0.00024931,2]
[329097416,1718103061709,-4278.21,0.00024931,2]
[329097417,1718103061721,-18970.56,0.00024931,2]
[329097418,1718103061733,-500.0,0.00024931,2]
[329097419,1718103061743,-215.346475,0.00024931,7]
[329097420,1718103061753,-500.0,0.00024931,2]
[329097421,1718103061765,-215.346475,0.00024931,7]
[329097422,1718103061775,-882.16,0.00024931,2]
[329097423,1718103061785,-1295.93,0.00024931,2]
[329097424,1718103061796,-7023.77,0.00024931,2]
[329097425,1718103061806,-1205.47,0.00024931,2]
[329097426,1718103061824,-4001.26,0.00024931,2]
[329097427,1718103061837,-2822.61,0.00024931,2]
[329097428,1718103061847,-506.35,0.00024931,2]
[329097429,1718103061858,-4627.88,0.00024931,2]
[329097430,1718103061868,-500.0,0.00024931,2]
[329097431,1718103061879,-4081.07,0.00024931,2]
[329097432,1718103061889,-500.0,0.00024931,2]
[329097433,1718103061899,-500.0,0.00024931,2]
[329097434,1718103061909,-500.0,0.00024931,2]
[329097435,1718103061920,-852.86,0.00024931,2]
[329097436,1718103061930,-5063.42,0.00024931,2]
[329097437,1718103061940,-3114.11,0.00024931,2]
[329097438,1718103061950,-6951.93,0.00024931,2]
[329097439,1718103061961,-514.47364842,0.00024931,2]
[329097440,1718103061974,-500.0,0.00024931,2]
[329097441,1718103061985,-4311.49,0.00024931,2]
[329097442,1718103061996,-566.75,0.00024931,2]
[329097443,1718103062006,-558.29,0.00024931,2]
[329097444,1718103062018,-1344.65,0.00024931,2]
[329097445,1718103062029,-872.84,0.00024931,2]
[329097446,1718103062039,-3798.71,0.00024931,2]
[329097447,1718103062051,-3626.02,0.00024931,2]
[329097448,1718103062061,-1542.55,0.00024931,2]
[329097449,1718103062071,-744.77,0.00024931,2]
[329097450,1718103062082,-151.0,0.00024931,7]
[329097451,1718103062092,-151.0,0.00024931,7]
[329097452,1718103062103,-500.0,0.00024931,2]
[329097453,1718103062113,-500.0,0.00024931,2]
[329097454,1718103062124,-2450.87,0.00024931,2]
[329097455,1718103062135,-6942.7,0.00024931,2]
[329097456,1718103062145,-500.0,0.00024931,2]
[329097457,1718103062165,-1960.82,0.00024931,2]
[329097458,1718103062175,-755.68,0.00024931,2]
[329097459,1718103062186,-2383.54,0.00024931,2]
[329097460,1718103062197,-4453.97,0.00024931,2]
[329097461,1718103062208,-791.5,0.00024931,2]
[329097462,1718103062220,-3124.99,0.00024931,2]
[329097463,1718103062231,-500.0,0.00024931,2]
[329097464,1718103062241,-1191.11,0.00024931,2]
[329097465,1718103062253,-555.95356023,0.00024931,2]
[329097466,1718103062266,-840.19,0.00024931,2]
[329097467,1718103062276,-5836.12,0.00024931,2]
[329097468,1718103062287,-2312.07,0.00024931,2]
[329097469,1718103062297,-500.0,0.00024931,2]
[329097470,1718103062308,-3576.14,0.00024931,2]
[329097471,1718103062318,-500.0,0.00024931,2]
[329097472,1718103062328,-500.0,0.00024931,2]
[329097473,1718103062338,-500.0,0.00024931,2]
[329097474,1718103062349,-500.0,0.00024931,2]
[329097475,1718103062359,-2101.15,0.00024931,2]
[329097476,1718103062369,-500.0,0.00024931,2]
[329097477,1718103062379,-537.44178431,0.00024931,2]
[329097478,1718103062389,-500.0,0.00024931,2]
[329097479,1718103062399,-832.37,0.00024931,2]
[329097480,1718103062409,-525.35795277,0.00024931,2]
[329097481,1718103062419,-1433.52,0.00024931,2]
[329097482,1718103062429,-545.76,0.00024931,2]
[329097483,1718103062440,-500.0,0.00024931,2]
[329097484,1718103062451,-972.32,0.00024931,2]
[329097485,1718103062461,-11542.35,0.00024931,2]
[329097486,1718103062472,-1776.98,0.00024931,2]
[329097487,1718103062482,-151.0,0.00024931,7]
[329097488,1718103062493,-151.0,0.00024931,7]
[329097489,1718103062504,-1230.55,0.00024931,2]
[329097490,1718103062516,-446.50093321,0.00024931,2]
[329097491,1718103062528,-500.0,0.00024931,2]
[329097492,1718103062539,-151.0,0.00024931,7]
[329097493,1718103062549,-174.175324,0.00024931,7]
[329097494,1718103062559,-500.0,0.00024931,2]
[329097495,1718103062569,-1676.04,0.00024931,2]
[329097496,1718103062579,-500.0,0.00024931,2]
[329097497,1718103062589,-1682.27,0.00024931,2]
[329097498,1718103062599,-11356.85,0.00024931,2]
[329097499,1718103062609,-500.0,0.00024931,2]
[329097500,1718103062619,-4244.602841,0.00024931,7]
[329097501,1718103062629,-500.0,0.00024931,2]
[329097502,1718103062639,-1477.71945041,0.00024956,2]
[329097503,1718103062649,-1250.0,0.00025,2]
[329097504,1718103062660,-243.796985,0.00025,7]
[329097505,1718103062670,-243.796985,0.00025,7]
[329097506,1718103062680,-165.20505,0.00025,7]
[329097507,1718103062690,-165.20505,0.00025,7]
[329097508,1718103062699,-646.123264,0.00025,7]
[329097509,1718103062710,-646.123264,0.00025,7]
[329097510,1718103062720,-164.176193,0.00025,7]
[329097511,1718103062731,-151.0,0.00025,7]
[329097512,1718103062741,-154.372811,0.00025,7]
[329097513,1718103062751,-154.372811,0.00025,7]
[329097514,1718103062762,-837.720545,0.00025,7]
[329097515,1718103062771,-837.720545,0.00025,7]
[329097516,1718103062781,-1080.442381,0.00025,7]
[329097517,1718103062791,-1080.442381,0.00025,7]
[329097518,1718103062801,-288.664985,0.00025,7]